fUST/lending_fUST_20250306
["ID","MTS","AMOUNT","RATE_DAILY","PERIOD"]
[355482858,1741199451199,-672.68,0.00039178,9]
[355482860,1741199451209,-1071.65,0.00039178,9]
[355482862,1741199451218,-603.83,0.00039178,9]
[355482864,1741199451228,-500.0,0.00039178,9]
[355482866,1741199451237,-4724.62,0.00039178,9]
[355482868,1741199451247,-500.0,0.00039178,9]
[355482870,1741199451257,-6783.98,0.00039178,9]
[355482872,1741199451267,-500.0,0.00039178,9]
[355482874,1741199451276,-648.44,0.00039178,9]
[355482876,1741199451286,-500.0,0.00039178,9]
[355482878,1741199451295,-500.0,0.00039178,9]
[355482880,1741199451305,-83043.63,0.00039178,7]
[355482882,1741199451314,-1902.25,0.00039178,9]
[355482884,1741199451323,-500.0,0.00039178,9]
[355482886,1741199451332,-445.94145535,0.00039178,9]
[355482888,1741199451342,-500.0,0.00039178,9]
[355482890,1741199451351,-1312.07,0.00039178,9]
[355482892,1741199451361,-1289.95,0.00039178,9]
[355482894,1741199451370,-500.0,0.00039178,9]
[355482896,1741199451381,-500.0,0.00039178,9]
[355482898,1741199451391,-2935.74,0.00039178,9]
[355482900,1741199451400,-500.0,0.00039178,9]
[355482902,1741199451411,-2186.68,0.00039178,9]
[355482904,1741199451420,-793.54,0.00039178,9]
[355482906,1741199451430,-1301.76,0.00039178,9]
[355482908,1741199451440,-500.0,0.00039178,9]
[355482910,1741199451450,-500.0,0.00039178,9]
[355482912,1741199451460,-500.0,0.00039178,9]
[355482914,1741199451470,-533.0,0.00039178,9]
[355482916,1741199451479,-500.0,0.00039178,9]
[355482918,1741199451489,-690.71,0.00039178,9]
[355482920,1741199451498,-557.52153876,0.00039178,9]
[355482922,1741199451507,-500.0,0.00039178,9]
[355482924,1741199451516,-500.0,0.00039178,9]
[355482926,1741199451526,-533.14,0.00039178,9]
[355482928,1741199451535,-5433.15,0.00039178,9]
[355482930,1741199451545,-500.0,0.00039178,9]
[355482932,1741199451554,-903.51,0.00039178,9]
[355482934,1741199451564,-928.38,0.00039178,9]
[355482936,1741199451573,-500.0,0.00039178,9]
[355482938,1741199451583,-781.04,0.00039178,9]
[355482940,1741199451594,-500.0,0.00039178,9]
[355482942,1741199451603,-500.0,0.00039178,9]
[355482944,1741199451613,-500.0,0.00039178,9]
[355482946,1741199451622,-500.0,0.00039178,9]
[355482948,1741199451634,-500.0,0.00039178,9]
[355482950,1741199451643,-500.0,0.00039178,9]
[355482952,1741199451654,-2043.91,0.00039178,9]
[355482954,1741199451664,-500.0,0.00039178,9]
[355482956,1741199451674,-1406.0,0.00039178,9]
[355482958,1741199451684,-500.0,0.00039178,9]
[355482960,1741199451694,-699.07,0.00039178,9]
[355482961,1741199451704,-10802.43,0.00039178,9]
[355482962,1741199451713,-500.0,0.00039178,9]
[355482963,1741199451723,-500.0,0.00039178,9]
[355482964,1741199451732,-809.31,0.00039178,9]
[355482965,1741199451742,-1217.74,0.00039178,9]
[355482966,1741199451751,-500.0,0.00039178,9]
[355482967,1741199451761,-500.0,0.00039178,9]
[355482968,1741199451771,-500.0,0.00039178,9]
[355482969,1741199451780,-500.0,0.00039178,9]
[355482970,1741199451790,-500.0,0.00039178,9]
[355482971,1741199451799,-12009.0,0.00039178,9]
[355482972,1741199451808,-500.0,0.00039178,9]
[355482973,1741199451818,-500.0,0.00039178,9]
[355482974,1741199451828,-546.16,0.00039178,9]
[355482975,1741199451838,-548.46,0.00039178,9]
[355482976,1741199451848,-500.0,0.00039178,9]
[355482977,1741199451857,-500.0,0.00039178,9]
[355482978,1741199451867,-4710.13,0.00039178,9]
[355482979,1741199451877,-500.0,0.00039178,9]
[355482980,1741199451886,-500.0,0.00039178,9]
[355482981,1741199451895,-500.0,0.00039178,9]
[355482982,1741199451905,-500.0,0.00039178,9]
[355482983,1741199451915,-1161.63,0.00039178,9]
[355482984,1741199451924,-650.94,0.00039178,9]
[355482985,1741199451933,-1769.05,0.00039178,9]
[355482986,1741199451943,-500.0,0.00039178,9]
[355482987,1741199451952,-500.0,0.00039178,9]
[355482988,1741199451962,-500.0,0.00039178,9]
[355482990,1741199451973,-685.16,0.00039178,9]
[355482991,1741199451982,-500.0,0.00039178,9]
[355482992,1741199451992,-851.77,0.00039178,9]
[355482994,1741199452005,-750.24,0.00039178,9]
[355482996,1741199452014,-640.07,0.00039178,9]
[355482998,1741199452024,-500.0,0.00039178,9]
[355483000,1741199452035,-1178.37,0.00039178,9]
[355483014,1741199452159,-508.96711486,0.00039178,9]
[355483017,1741199452191,-500.0,0.00039178,9]
[355483019,1741199452201,-500.0,0.00039178,9]
[355483021,1741199452210,-500.0,0.00039178,9]
[355483023,1741199452220,-1299.64,0.00039178,9]
[355483025,1741199452231,-527.09,0.00039178,9]
[355483027,1741199452240,-1076.88,0.00039178,9]
[355483029,1741199452249,-500.0,0.00039178,9]
[355483031,1741199452258,-575.08,0.00039178,9]
[355483033,1741199452267,-500.0,0.00039178,9]
[355483035,1741199452277,-682.47,0.00039178,9]
[355483037,1741199452286,-500.0,0.00039178,9]
[355483039,1741199452295,-500.0,0.00039178,9]
[355483041,1741199452304,-500.0,0.00039178,9]
[355483043,1741199452314,-532.23198907,0.00039178,9]
[355483045,1741199452324,-500.0,0.00039178,9]
[355483047,1741199452334,-500.0,0.00039178,9]
[355483049,1741199452344,-4195.73,0.00039178,9]
[355483051,1741199452353,-500.0,0.00039178,9]
[355483053,1741199452364,-500.0,0.00039178,9]
[355483055,1741199452373,-500.0,0.00039178,9]
[355483057,1741199452384,-1647.86,0.00039178,9]
[355483059,1741199452393,-500.0,0.00039178,9]
[355483061,1741199452402,-4932.7,0.00039178,9]
[355483063,1741199452412,-500.0,0.00039178,9]
[355483065,1741199452421,-1324.25,0.00039178,9]
[355483067,1741199452431,-500.0,0.00039178,9]
[355483069,1741199452440,-579.33,0.00039178,9]
[355483071,1741199452451,-181.17489306,0.00039178,9]
[355483073,1741199452460,-628.34714179,0.00039178,9]
[355483075,1741199452470,-510.89,0.00039178,9]
[355483077,1741199452480,-500.0,0.00039178,9]
[355483079,1741199452489,-4682.7,0.00039178,9]
[355483081,1741199452499,-500.0,0.00039178,9]
[355483083,1741199452508,-2686.17,0.00039178,9]
[355483085,1741199452518,-510.08082457,0.00039178,9]
[355483087,1741199452527,-500.0,0.00039178,9]
[355483089,1741199452537,-500.0,0.00039178,9]
[355483091,1741199452546,-787.45,0.00039178,9]
[355483093,1741199452555,-650.26,0.00039312,3]
[355483095,1741199452564,-325.14,0.00039312,3]
[355483097,1741199452574,-150.0,0.00039325,2]
[355483099,1741199452583,-500.0,0.00039331,9]
[355483101,1741199452593,-500.0,0.00039331,9]
[355483103,1741199452602,-500.0,0.00039331,9]
[355483105,1741199452612,-500.0,0.00039331,9]
[355483107,1741199452621,-500.0,0.00039331,9]
[355483109,1741199452632,-500.0,0.00039331,9]
[355483111,1741199452641,-500.0,0.00039331,9]
[355483113,1741199452651,-500.0,0.00039331,9]
[355483115,1741199452660,-500.0,0.00039331,9]
[355483117,1741199452670,-500.0,0.00039331,9]
[355483119,1741199452679,-500.0,0.00039331,9]
[355483121,1741199452688,-500.0,0.00039331,9]
[355483123,1741199452697,-500.0,0.00039331,9]
[355483125,1741199452706,-500.0,0.00039331,9]
[355483127,1741199452715,-500.0,0.00039331,9]
[355483129,1741199452725,-500.0,0.00039331,9]
[355483131,1741199452734,-500.0,0.00039331,9]
[355483133,1741199452744,-500.0,0.00039331,9]
[355483135,1741199452753,-500.0,0.00039331,9]
[355483137,1741199452762,-385.45058927,0.00039331,9]
[355483139,1741199452772,-628.0,0.000394,2]
[355483141,1741199452782,-607.99,0.00039452,9]
[355483143,1741199452792,-506.24003316,0.00039452,9]
[355483145,1741199452801,-500.0,0.00039452,9]
[355483147,1741199452810,-552.999947,0.00039452,9]
[355483149,1741199452819,-500.0,0.00039452,9]
[355483151,1741199452828,-500.0,0.00039452,9]
[355483152,1741199452838,-635.65,0.00039452,9]
[355483153,1741199452847,-500.0,0.00039452,9]
[355483154,1741199452857,-500.0,0.00039452,9]
[355483155,1741199452866,-500.0,0.00039452,9]
[355483156,1741199452875,-500.0,0.00039452,9]
[355483157,1741199452885,-500.0,0.00039452,9]
[355483158,1741199452895,-500.0,0.00039452,9]
[355483159,1741199452904,-500.0,0.00039452,9]
[355483160,1741199452913,-500.0,0.00039452,9]
[355483161,1741199452923,-500.0,0.00039452,9]
[355483162,1741199452938,-500.0,0.00039452,9]
[355483163,1741199452950,-514.54786658,0.00039452,9]
[355483164,1741199452960,-500.0,0.00039452,9]
[355483165,1741199452969,-500.0,0.00039452,9]
[355483166,1741199452978,-500.0,0.00039452,9]
[355483167,1741199452987,-500.0,0.00039452,9]
[355483168,1741199453000,-500.0,0.00039452,9]
[355483169,1741199453009,-500.0,0.00039452,9]
[355483170,1741199453018,-188.09192316,0.00039452,9]
[355483171,1741199453032,-532.13,0.00039452,9]
[355483172,1741199453045,-500.0,0.00039452,9]
[355483173,1741199453054,-500.0,0.00039452,9]
[355483174,1741199453064,-624.19,0.00039452,9]
[355483175,1741199453073,-500.0,0.00039452,9]
[355483176,1741199453082,-500.0,0.00039452,9]
[355483177,1741199453091,-500.0,0.00039452,9]
[355483178,1741199453101,-500.0,0.00039452,9]
[355483179,1741199453110,-500.0,0.00039452,9]
[355483180,1741199453119,-500.0,0.00039452,9]
[355483181,1741199453129,-763.35,0.00039452,9]
[355483182,1741199453138,-152.55163763,0.00039452,9]
[355483183,1741199453147,-510.6,0.00039452,9]
[355483184,1741199453155,-633.09,0.00039452,9]
[355483185,1741199453165,-500.0,0.00039452,9]
[355483186,1741199453174,-500.0,0.00039452,9]
[355483187,1741199453183,-260.2592617,0.00039452,9]
[355483188,1741199453192,-500.0,0.00039452,9]
[355483189,1741199453201,-500.0,0.00039452,9]
[355483190,1741199453210,-500.0,0.00039452,9]
[355483191,1741199453219,-500.0,0.00039452,9]
[355483192,1741199453228,-500.0,0.00039452,9]
[355483193,1741199453238,-500.0,0.00039452,9]
[355483194,1741199453247,-500.0,0.00039452,9]
[355483195,1741199453256,-500.0,0.00039452,9]
[355483196,1741199453266,-561.69,0.00039452,9]
[355483197,1741199453275,-500.0,0.00039452,9]
[355483198,1741199453285,-500.0,0.00039452,9]
[355483199,1741199453295,-500.0,0.00039452,9]
[355483200,1741199453304,-1020.48,0.00039452,9]
[355483201,1741199453314,-301.65020164,0.00039452,9]
[355483202,1741199453323,-769.82,0.00039452,9]
[355483203,1741199453332,-500.0,0.00039452,9]
[355483204,1741199453341,-500.0,0.00039452,9]
[355483205,1741199453350,-500.0,0.00039452,9]
[355483206,1741199453359,-500.0,0.00039452,9]
[355483207,1741199453368,-500.0,0.00039452,9]
[355483208,1741199453378,-500.0,0.00039452,9]
[355483209,1741199453387,-500.0,0.00039452,9]
[355483210,1741199453397,-500.0,0.00039452,9]
[355483211,1741199453407,-500.0,0.00039452,9]
[355483212,1741199453416,-670.77,0.00039452,9]
[355483213,1741199453426,-696.48,0.00039452,9]
[355483214,1741199453436,-500.0,0.00039452,9]
[355483215,1741199453446,-500.0,0.00039452,9]
[355483216,1741199453455,-500.0,0.00039452,9]
[355483217,1741199453464,-500.0,0.00039452,9]
[355483218,1741199453474,-500.0,0.00039452,9]
[355483219,1741199453483,-500.0,0.00039452,9]
[355483220,1741199453493,-525.96,0.00039452,9]
[355483221,1741199453503,-1001.25,0.00039452,9]
[355483222,1741199453512,-500.0,0.00039452,9]
[355483223,1741199453522,-948.13,0.00039452,9]
[355483224,1741199453531,-883.82,0.00039452,9]
[355483225,1741199453541,-1447.54,0.00039452,9]
[355483226,1741199453550,-500.0,0.00039452,9]
[355483227,1741199453560,-500.0,0.00039452,9]
[355483228,1741199453570,-500.0,0.00039452,9]
[355483229,1741199453580,-526.16,0.00039452,9]
[355483230,1741199453589,-512.00472754,0.00039452,9]
[355483231,1741199453600,-500.0,0.00039452,9]
[355483232,1741199453609,-500.0,0.00039452,9]
[355483233,1741199453619,-504.21,0.00039452,9]
[355483234,1741199453629,-500.0,0.00039452,9]
[355483235,1741199453639,-500.0,0.00039452,9]
[355483236,1741199453649,-500.0,0.00039452,9]
[355483238,1741199453659,-519.58,0.00039452,9]
[355483240,1741199453668,-923.32,0.00039452,9]
[355483242,1741199453678,-501.58,0.00039452,9]
[355483244,1741199453687,-832.14,0.00039452,9]
[355483246,1741199453697,-500.0,0.00039452,9]
[355483248,1741199453706,-500.0,0.00039452,9]
[355483250,1741199453716,-500.0,0.00039452,9]
[355483252,1741199453725,-500.0,0.00039452,9]
[355483254,1741199453735,-547.92487226,0.00039452,9]
[355483256,1741199453744,-986.24,0.00039452,9]
[355483258,1741199453754,-678.02,0.00039452,9]
[355483260,1741199453764,-500.0,0.00039452,9]
[355483262,1741199453773,-500.0,0.00039452,9]
[355483264,1741199453783,-695.18,0.00039452,9]
[355483266,1741199453792,-1921.11,0.00039452,9]
[355483268,1741199453802,-500.0,0.00039452,9]
[355483270,1741199453811,-500.0,0.00039452,9]
[355483272,1741199453821,-672.68,0.00039452,9]
[355483274,1741199453830,-1071.65,0.00039452,9]
[355483276,1741199453839,-603.83,0.00039452,9]
[355483279,1741199453853,-500.0,0.00039452,9]
[355483280,1741199453863,-4724.62,0.00039452,9]
[355483282,1741199453873,-500.0,0.00039452,9]
[355483284,1741199453883,-6783.98,0.00039452,9]
[355483286,1741199453893,-500.0,0.00039452,9]
[355483289,1741199453903,-648.44,0.00039452,9]
[355483290,1741199453913,-500.0,0.00039452,9]
[355483292,1741199453922,-500.0,0.00039452,9]
[355483294,1741199453932,-83043.63,0.00039452,7]
[355483296,1741199453941,-1902.25,0.00039452,9]
[355483298,1741199453952,-500.0,0.00039452,9]
[355483301,1741199453961,-500.0,0.00039452,9]
[355483303,1741199453971,-1312.07,0.00039452,9]
[355483305,1741199453981,-1289.95,0.00039452,9]
[355483307,1741199453995,-374.89026416,0.00039452,9]
[355483309,1741199454004,-500.0,0.00039452,9]
[355483311,1741199454014,-2935.74,0.00039452,9]
[355483313,1741199454024,-500.0,0.00039452,9]
[355483315,1741199454035,-2186.68,0.00039452,9]
[355483317,1741199454045,-793.54,0.00039452,9]
[355483319,1741199454054,-1301.76,0.00039452,9]
[355483321,1741199454064,-500.0,0.00039452,9]
[355483323,1741199454074,-500.0,0.00039452,9]
[355483325,1741199454083,-500.0,0.00039452,9]
[355483327,1741199454093,-533.0,0.00039452,9]
[355483329,1741199454102,-500.0,0.00039452,9]
[355483331,1741199454111,-690.71,0.00039452,9]
[355483333,1741199454121,-500.0,0.00039452,9]
[355483335,1741199454132,-500.0,0.00039452,9]
[355483337,1741199454142,-533.14,0.00039452,9]
[355483338,1741199454151,-5433.15,0.00039452,9]
[355483339,1741199454159,-416.32646178,0.00039452,9]
[355483363,1741199454430,-83.67353822,0.00039452,9]
[355483365,1741199454439,-903.51,0.00039452,9]
[355483367,1741199454448,-928.38,0.00039452,9]
[355483369,1741199454458,-500.0,0.00039452,9]
[355483376,1741199454468,-781.04,0.00039452,9]
[355483378,1741199454516,-500.0,0.00039452,9]
[355483380,1741199454526,-500.0,0.00039452,9]
[355483382,1741199454535,-500.0,0.00039452,9]
[355483384,1741199454544,-500.0,0.00039452,9]
[355483386,1741199454554,-500.0,0.00039452,9]
[355483388,1741199454563,-500.0,0.00039452,9]
[355483390,1741199454572,-2043.91,0.00039452,9]
[355483392,1741199454582,-500.0,0.00039452,9]
[355483393,1741199454591,-1406.0,0.00039452,9]
[355483395,1741199454600,-221.13802222,0.00039452,9]
[355483397,1741199454612,-278.86197778,0.00039452,9]
[355483399,1741199454621,-699.07,0.00039452,9]
[355483401,1741199454632,-10802.43,0.00039452,9]
[355483403,1741199454643,-500.0,0.00039452,9]
[355483405,1741199454653,-500.0,0.00039452,9]
[355483407,1741199454663,-1217.74,0.00039452,9]
[355483409,1741199454674,-809.31,0.00039452,9]
[355483411,1741199454683,-500.0,0.00039452,9]
[355483413,1741199454693,-500.0,0.00039452,9]
[355483415,1741199454702,-500.0,0.00039452,9]
[355483418,1741199454711,-500.0,0.00039452,9]
[355483420,1741199454721,-500.0,0.00039452,9]
[355483422,1741199454731,-12009.0,0.00039452,9]
[355483424,1741199454740,-500.0,0.00039452,9]
[355483426,1741199454749,-500.0,0.00039452,9]
[355483428,1741199454758,-546.16,0.00039452,9]
[355483430,1741199454767,-548.46,0.00039452,9]
[355483432,1741199454776,-500.0,0.00039452,9]
[355483434,1741199454786,-500.0,0.00039452,9]
[355483435,1741199454795,-4710.13,0.00039452,9]
[355483438,1741199454804,-178.90145953,0.00039452,9]
[355483440,1741199454813,-500.0,0.00039452,9]
[355483441,1741199454822,-182.13587715,0.00039452,9]
[355483444,1741199454831,-500.0,0.00039452,9]
[355483445,1741199454840,-1161.63,0.00039452,9]
[355483448,1741199454850,-650.94,0.00039452,9]
[355483449,1741199454859,-1769.05,0.00039452,9]
[355483452,1741199454868,-500.0,0.00039452,9]
[355483454,1741199454877,-500.0,0.00039452,9]
[355483456,1741199454889,-500.0,0.00039452,9]
[355483458,1741199454898,-685.16,0.00039452,9]
[355483460,1741199454907,-500.0,0.00039452,9]
[355483462,1741199454917,-851.77,0.00039452,9]
[355483464,1741199454927,-750.24,0.00039452,9]
[355483466,1741199454936,-640.07,0.00039452,9]
[355483468,1741199454945,-500.0,0.00039452,9]
[355483470,1741199454955,-1178.37,0.00039452,9]
[355483472,1741199454965,-436.02481084,0.00039452,9]
[355483474,1741199454974,-500.0,0.00039452,9]
[355483476,1741199454983,-500.0,0.00039452,9]
[355483478,1741199454992,-1299.64,0.00039452,9]
[355483480,1741199455005,-527.09,0.00039452,9]
[355483482,1741199455015,-1076.88,0.00039452,9]
[355483484,1741199455024,-500.0,0.00039452,9]
[355483486,1741199455033,-575.08,0.00039452,9]
[355483488,1741199455044,-211.28160652,0.00039452,9]
[355483490,1741199455054,-682.47,0.00039452,9]
[355483492,1741199455063,-500.0,0.00039452,9]
[355483494,1741199455073,-510.8365529,0.00039452,9]
[355483496,1741199455082,-500.0,0.00039452,9]
[355483498,1741199455092,-500.0,0.00039452,9]
[355483500,1741199455102,-500.0,0.00039452,9]
[355483502,1741199455111,-4195.73,0.00039452,9]
[355483504,1741199455120,-500.0,0.00039452,9]
[355483506,1741199455130,-500.0,0.00039452,9]
[355483508,1741199455139,-511.13166108,0.00039452,9]
[355483510,1741199455147,-1647.86,0.00039452,9]
[355483512,1741199455156,-500.0,0.00039452,9]
[355483514,1741199455167,-4932.7,0.00039452,9]
[355483516,1741199455176,-500.0,0.00039452,9]
[355483518,1741199455185,-1324.25,0.00039452,9]
[355483520,1741199455195,-500.0,0.00039452,9]
[355483522,1741199455205,-579.33,0.00039452,9]
[355483524,1741199455215,-510.89,0.00039452,9]
[355483526,1741199455224,-500.0,0.00039452,9]
[355483528,1741199455235,-4682.7,0.00039452,9]
[355483530,1741199455244,-323.25207127,0.00039452,9]
[355483532,1741199455253,-2686.17,0.00039452,9]
[355483534,1741199455262,-293.10804762,0.00039452,9]
[355483536,1741199455271,-500.0,0.00039452,9]
[355483538,1741199455281,-787.45,0.00039452,9]
[355483539,1741199455290,-150.0,0.00039473,5]
[355483540,1741199455299,-238.7276385,0.00039689,4]
[355483541,1741199455309,-2212.537,0.00039708,14]
[355483542,1741199455318,-607.99,0.00039726,9]
[355483543,1741199455327,-500.0,0.00039726,9]
[355483544,1741199455336,-176.699889,0.00039726,14]
[355483545,1741199455346,-500.0,0.00039726,9]
[355483546,1741199455355,-500.0,0.00039726,9]
[355483547,1741199455364,-635.65,0.00039726,9]
[355483548,1741199455373,-500.0,0.00039726,9]
[355483549,1741199455384,-500.0,0.00039726,9]
[355483550,1741199455393,-515.87808476,0.00039726,9]
[355483551,1741199455403,-500.0,0.00039726,9]
[355483552,1741199455412,-500.0,0.00039726,9]
[355483553,1741199455422,-608.45833684,0.00039726,9]
[355483554,1741199455431,-500.0,0.00039726,9]
[355483555,1741199455440,-500.0,0.00039726,9]
[355483556,1741199455450,-263.0688069,0.00039726,9]
[355483557,1741199455459,-500.0,0.00039726,9]
[355483558,1741199455468,-500.0,0.00039726,9]
[355483559,1741199455478,-500.0,0.00039726,9]
[355483560,1741199455487,-500.0,0.00039726,9]
[355483561,1741199455497,-500.0,0.00039726,9]
[355483562,1741199455507,-500.0,0.00039726,9]
[355483563,1741199455516,-500.0,0.00039726,9]
[355483564,1741199455525,-532.13,0.00039726,9]
[355483565,1741199455534,-500.0,0.00039726,9]
[355483566,1741199455543,-516.29177874,0.00039726,9]
[355483567,1741199455553,-624.19,0.00039726,9]
[355483568,1741199455562,-500.0,0.00039726,9]
[355483569,1741199455572,-500.0,0.00039726,9]
[355483570,1741199455581,-500.0,0.00039726,9]
[355483571,1741199455590,-500.0,0.00039726,9]
[355483572,1741199455600,-500.0,0.00039726,9]
[355483573,1741199455609,-500.0,0.00039726,9]
[355483574,1741199455619,-763.35,0.00039726,9]
[355483575,1741199455628,-510.6,0.00039726,9]
[355483576,1741199455638,-633.09,0.00039726,9]
[355483577,1741199455647,-500.0,0.00039726,9]
[355483578,1741199455657,-500.0,0.00039726,9]
[355483579,1741199455666,-151.0,0.00039726,14]
[355483580,1741199455676,-251.96,0.00039726,9]
[355483581,1741199455685,-500.0,0.00039726,9]
[355483582,1741199455695,-500.0,0.00039726,9]
[355483583,1741199455703,-500.0,0.00039726,9]
[355483584,1741199455713,-500.0,0.00039726,9]
[355483585,1741199455722,-500.0,0.00039726,9]
[355483586,1741199455732,-500.0,0.00039726,9]
[355483587,1741199455742,-500.0,0.00039726,9]
[355483588,1741199455751,-561.69,0.00039726,9]
[355483589,1741199455760,-500.0,0.00039726,9]
[355483590,1741199455770,-500.0,0.00039726,9]
[355483591,1741199455779,-500.0,0.00039726,9]
[355483592,1741199455789,-1020.48,0.00039726,9]
[355483593,1741199455799,-769.82,0.00039726,9]
[355483594,1741199455808,-500.0,0.00039726,9]
[355483595,1741199455818,-500.0,0.00039726,9]
[355483596,1741199455827,-575.747745,0.00039726,9]
[355483597,1741199455836,-500.0,0.00039726,9]
[355483598,1741199455845,-500.0,0.00039726,9]
[355483599,1741199455856,-500.0,0.00039726,9]
[355483600,1741199455866,-582.27984742,0.00039726,9]
[355483601,1741199455876,-500.0,0.00039726,9]
[355483602,1741199455887,-500.0,0.00039726,9]
[355483603,1741199455897,-670.77,0.00039726,9]
[355483604,1741199455906,-696.48,0.00039726,9]
[355483605,1741199455916,-500.0,0.00039726,9]
[355483606,1741199455926,-500.0,0.00039726,9]
[355483607,1741199455935,-500.0,0.00039726,9]
[355483608,1741199455945,-500.0,0.00039726,9]
[355483609,1741199455954,-500.0,0.00039726,9]
[355483610,1741199455964,-500.0,0.00039726,9]
[355483611,1741199455974,-525.96,0.00039726,9]
[355483612,1741199455986,-1001.25,0.00039726,9]
[355483613,1741199455999,-500.0,0.00039726,9]
[355483614,1741199456009,-948.13,0.00039726,9]
[355483615,1741199456018,-883.82,0.00039726,9]
[355483616,1741199456028,-1447.54,0.00039726,9]
[355483617,1741199456039,-500.0,0.00039726,9]
[355483618,1741199456049,-500.0,0.00039726,9]
[355483619,1741199456058,-500.0,0.00039726,9]
[355483620,1741199456071,-526.16,0.00039726,9]
[355483621,1741199456081,-500.0,0.00039726,9]
[355483622,1741199456090,-500.0,0.00039726,9]
[355483623,1741199456100,-504.21,0.00039726,9]
[355483624,1741199456110,-500.0,0.00039726,9]
[355483625,1741199456120,-500.0,0.00039726,9]
[355483626,1741199456133,-500.0,0.00039726,9]
[355483627,1741199456142,-519.58,0.00039726,9]
[355483628,1741199456152,-923.32,0.00039726,9]
[355483629,1741199456163,-501.58,0.00039726,9]
[355483630,1741199456173,-832.14,0.00039726,9]
[355483631,1741199456182,-500.0,0.00039726,9]
[355483632,1741199456192,-500.0,0.00039726,9]
[355483633,1741199456201,-511.69125559,0.00039726,9]
[355483634,1741199456211,-500.0,0.00039726,9]
[355483635,1741199456221,-986.24,0.00039726,9]
[355483636,1741199456231,-678.02,0.00039726,9]
[355483637,1741199456240,-500.0,0.00039726,9]
[355483638,1741199456250,-500.0,0.00039726,9]
[355483639,1741199456259,-695.18,0.00039726,9]
[355483640,1741199456269,-1921.11,0.00039726,9]
[355483641,1741199456279,-500.0,0.00039726,9]
[355483642,1741199456289,-500.0,0.00039726,9]
[355483643,1741199456299,-672.68,0.00039726,9]
[355483644,1741199456309,-1071.65,0.00039726,9]
[355483645,1741199456318,-603.83,0.00039726,9]
[355483646,1741199456328,-265.51698481,0.00039726,9]
[355483647,1741199456338,-4724.62,0.00039726,9]
[355483648,1741199456348,-500.0,0.00039726,9]
[355483649,1741199456357,-6783.98,0.00039726,9]
[355483650,1741199456367,-500.0,0.00039726,9]
[355483651,1741199456377,-648.44,0.00039726,9]
[355483652,1741199456390,-500.0,0.00039726,9]
[355483653,1741199456399,-500.0,0.00039726,9]
[355483654,1741199456409,-83043.63,0.00039726,7]
[355483655,1741199456419,-1902.25,0.00039726,9]
[355483656,1741199456429,-500.0,0.00039726,9]
[355483657,1741199456439,-500.0,0.00039726,9]
[355483658,1741199456449,-1312.07,0.00039726,9]
[355483659,1741199456459,-1289.95,0.00039726,9]